lending/lending_fUSD_20240401
["ID","MTS","AMOUNT","RATE_DAILY","PERIOD"]
[321182277,1711951842091,-500.0,0.00054794,120]
[321182278,1711951842102,-500.0,0.00054794,120]
[321182279,1711951842114,-500.0,0.00054794,120]
[321182280,1711951842126,-500.0,0.00054794,120]
[321182281,1711951842138,-500.0,0.00054794,120]
[321182282,1711951842149,-634.46864866,0.00054794,120]
[321182283,1711951842161,-500.0,0.00054794,120]
[321182284,1711951842174,-150.0,0.00054794,120]
[321182285,1711951842185,-210.92,0.00054794,120]
[321182286,1711951842196,-499.01542981,0.00054794,120]
[321182287,1711951842207,-500.0,0.00054794,120]
[321182288,1711951842219,-524.26606246,0.00054794,120]
[321182289,1711951842230,-500.0,0.00054794,120]
[321182290,1711951842241,-500.0,0.00054794,120]
[321182291,1711951842252,-500.0,0.00054794,120]
[321182292,1711951842263,-541.17,0.00054794,120]
[321182293,1711951842273,-500.0,0.00054794,120]
[321182294,1711951842284,-513.78098881,0.00054794,120]
[321182295,1711951842295,-500.0,0.00054794,120]
[321182296,1711951842305,-500.0,0.00054794,120]
[321182297,1711951842320,-500.0,0.00054794,120]
[321182298,1711951842331,-500.0,0.00054794,120]
[321182299,1711951842342,-500.0,0.00054794,120]
[321182300,1711951842353,-500.0,0.00054794,120]
[321182302,1711951842365,-500.0,0.00054794,120]
[321182304,1711951842376,-500.0,0.00054794,120]
[321182306,1711951842387,-500.0,0.00054794,50]
[321182307,1711951842400,-500.0,0.00054794,120]
[321182308,1711951842412,-500.0,0.00054794,120]
[321182309,1711951842421,-358.0755867,0.00054794,120]
[321182310,1711951842432,-500.0,0.00054794,120]
[321182311,1711951842443,-500.0,0.00054794,120]
[321182313,1711951842453,-500.0,0.00054794,120]
[321182315,1711951842464,-500.0,0.00054794,120]
[321182316,1711951842474,-500.0,0.00054794,120]
[321182317,1711951842485,-500.0,0.00054794,120]
[321182318,1711951842494,-500.0,0.00054794,120]
[321182319,1711951842504,-500.0,0.00054794,120]
[321182320,1711951842515,-500.0,0.00054794,120]
[321182322,1711951842739,-500.0,0.00054794,120]
[321182324,1711951842758,-500.0,0.00054794,120]
[321182326,1711951842773,-713.07476541,0.00054794,4]
[321182327,1711951842783,-500.0,0.00054794,120]
[321182328,1711951842793,-500.0,0.00054794,120]
[321182329,1711951842802,-500.0,0.00054794,120]
[321182331,1711951842814,-623.7,0.00054794,120]
[321182333,1711951842824,-500.0,0.00054794,120]
[321182334,1711951842833,-775.42,0.00054794,120]
[321182336,1711951842844,-500.0,0.00054794,120]
[321182338,1711951842853,-768.77,0.00054794,120]
[321182340,1711951842863,-1125.53,0.00054794,120]
[321182342,1711951842872,-500.0,0.00054794,120]
[321182344,1711951842883,-704.11,0.00054794,120]
[321182346,1711951842894,-3905.3,0.00054794,120]
[321182348,1711951842903,-500.0,0.00054794,120]
[321182350,1711951842913,-500.0,0.00054794,120]
[321182352,1711951842924,-1527.15,0.00054794,120]
[321182354,1711951842934,-500.0,0.00054794,120]
[321182359,1711951842944,-500.0,0.00054794,120]
[321182363,1711951842954,-500.0,0.00054794,120]
[321182368,1711951842964,-500.0,0.00054794,120]
[321182372,1711951842973,-500.0,0.00054794,120]
[321182374,1711951842983,-2316.33,0.00054794,120]
[321182377,1711951842993,-500.0,0.00054794,120]
[321182379,1711951843003,-500.0,0.00054794,120]
[321182381,1711951843012,-844.99,0.00054794,120]
[321182382,1711951843021,-500.0,0.00054794,120]
[321182384,1711951843031,-500.0,0.00054794,120]
[321182385,1711951843041,-500.0,0.00054794,120]
[321182386,1711951843050,-500.0,0.00054794,120]
[321182387,1711951843066,-500.0,0.00054794,120]
[321182388,1711951843076,-500.0,0.00054794,120]
[321182389,1711951843086,-500.0,0.00054794,120]
[321182390,1711951843095,-500.0,0.00054794,120]
[321182391,1711951843105,-885.7,0.00054794,120]
[321182392,1711951843115,-500.0,0.00054794,120]
[321182393,1711951843125,-500.0,0.00054794,120]
[321182394,1711951843135,-562.82407242,0.00054794,120]
[321182395,1711951843145,-1295.33,0.00054794,120]
[321182396,1711951843155,-2937.94,0.00054794,120]
[321182397,1711951843165,-500.0,0.00054794,120]
[321182398,1711951843174,-500.0,0.00054794,120]
[321182399,1711951843184,-1995.86,0.00054794,120]
[321182400,1711951843193,-500.0,0.00054794,120]
[321182401,1711951843203,-500.0,0.00054794,120]
[321182402,1711951843213,-598.43,0.00054794,120]
[321182403,1711951843222,-500.0,0.00054794,120]
[321182404,1711951843232,-500.0,0.00054794,120]
[321182405,1711951843242,-500.0,0.00054794,120]
[321182406,1711951843251,-500.0,0.00054794,120]
[321182407,1711951843261,-500.0,0.00054794,120]
[321182408,1711951843271,-1598.44,0.00054794,120]
[321182409,1711951843281,-500.0,0.00054794,120]
[321182410,1711951843290,-500.0,0.00054794,120]
[321182411,1711951843299,-500.0,0.00054794,120]
[321182412,1711951843309,-1620.39,0.00054794,120]
[321182413,1711951843320,-500.0,0.00054794,120]
[321182414,1711951843330,-500.0,0.00054794,120]
[321182415,1711951843339,-1182.42,0.00054794,120]
[321182416,1711951843349,-500.0,0.00054794,120]
[321182417,1711951843358,-500.0,0.00054794,120]
[321182418,1711951843367,-500.0,0.00054794,120]
[321182419,1711951843377,-500.0,0.00054794,120]
[321182420,1711951843386,-500.0,0.00054794,120]
[321182421,1711951843395,-1108.51,0.00054794,120]
[321182422,1711951843406,-500.0,0.00054794,120]
[321182423,1711951843415,-2166.26,0.00054794,120]
[321182424,1711951843424,-500.0,0.00054794,120]
[321182425,1711951843433,-500.0,0.00054794,120]
[321182426,1711951843445,-500.0,0.00054794,120]
[321182427,1711951843454,-500.0,0.00054794,120]
[321182428,1711951843463,-500.0,0.00054794,120]
[321182429,1711951843473,-760.91,0.00054794,120]
[321182430,1711951843482,-243.46603595,0.00054794,120]
[321182431,1711951843491,-500.0,0.00054794,120]
[321182432,1711951843500,-500.0,0.00054794,120]
[321182433,1711951843509,-500.0,0.00054794,120]
[321182434,1711951843520,-1208.42,0.00054794,120]
[321182435,1711951843530,-500.0,0.00054794,120]
[321182436,1711951843539,-500.0,0.00054794,120]
[321182437,1711951843548,-500.0,0.00054794,120]
[321182438,1711951843557,-2832.74,0.00054794,120]
[321182439,1711951843570,-500.0,0.00054794,120]
[321182440,1711951843579,-500.0,0.00054794,120]
[321182441,1711951843589,-651.14,0.00054794,120]
[321182442,1711951843598,-500.0,0.00054794,120]
[321182443,1711951843608,-511.26913786,0.00054794,120]
[321182444,1711951843618,-734.88,0.00054794,120]
[321182445,1711951843627,-500.0,0.00054794,120]
[321182446,1711951843636,-500.0,0.00054794,120]
[321182448,1711951843645,-1257.16,0.00054794,120]
[321182450,1711951843654,-500.0,0.00054794,120]
[321182451,1711951843663,-741.06,0.00054794,120]
[321182453,1711951843672,-500.0,0.00054794,120]
[321182454,1711951843681,-500.0,0.00054794,120]
[321182455,1711951843690,-1699.92,0.00054794,120]
[321182456,1711951843699,-1993.44,0.00054794,120]
[321182457,1711951843710,-585.62240459,0.00054794,120]
[321182458,1711951843719,-509.04386887,0.00054794,120]
[321182459,1711951843729,-500.0,0.00054794,120]
[321182460,1711951843739,-500.0,0.00054794,120]
[321182461,1711951843748,-561.45489612,0.00054794,120]
[321182462,1711951843757,-545.64963532,0.00054794,120]
[321182463,1711951843766,-500.0,0.00054794,120]
[321182464,1711951843775,-500.0,0.00054794,120]
[321182465,1711951843784,-500.0,0.00054794,120]
[321182466,1711951843794,-500.0,0.00054794,120]
[321182467,1711951843803,-3642.1,0.00054794,120]
[321182468,1711951843813,-500.0,0.00054794,120]
[321182469,1711951843823,-623.05441045,0.00054794,120]
[321182470,1711951843832,-7257.52,0.00054794,120]
[321182471,1711951843841,-500.0,0.00054794,120]
[321182472,1711951843851,-265.02875242,0.00054794,120]
[321182473,1711951843860,-500.0,0.00054794,120]
[321182474,1711951843870,-515.47733345,0.00054794,120]
[321182475,1711951843879,-500.0,0.00054794,120]
[321182476,1711951843889,-482.43172343,0.00054794,120]
[321182477,1711951843899,-500.0,0.00054794,120]
[321182478,1711951843909,-505.66980663,0.00054794,120]
[321182479,1711951843918,-500.0,0.00054794,120]
[321182480,1711951843928,-500.0,0.00054794,120]
[321182481,1711951843937,-564.26740761,0.00054794,120]
[321182482,1711951843946,-902.57,0.00054794,21]
[321182483,1711951843955,-500.0,0.00054794,120]
[321182484,1711951843965,-500.0,0.00054794,120]
[321182485,1711951843974,-500.0,0.00054794,120]
[321182486,1711951843984,-500.0,0.00054794,120]
[321182487,1711951843993,-500.0,0.00054794,120]
[321182488,1711951844003,-500.0,0.00054794,120]
[321182489,1711951844012,-500.0,0.00054794,120]
[321182490,1711951844021,-2173.88,0.00054794,120]
[321182491,1711951844031,-500.0,0.00054794,120]
[321182492,1711951844039,-500.0,0.00054794,120]
[321182493,1711951844049,-181.32,0.00054794,120]
[321182494,1711951844058,-500.0,0.00054794,120]
[321182495,1711951844070,-500.0,0.00054794,120]
[321182496,1711951844079,-500.0,0.00054794,120]
[321182497,1711951844088,-500.0,0.00054794,120]
[321182498,1711951844097,-503.74753999,0.00054794,2]
[321182499,1711951844106,-174.16227541,0.00054968,63]
[321182500,1711951844115,-420.71888147,0.00055,120]
[321182501,1711951844125,-10383.30305342,0.00055,120]
[321182502,1711951844135,-260.0,0.00055,120]
[321182503,1711951844144,-500.0,0.00055068,120]
[321182504,1711951844153,-546.63056787,0.00055068,120]
[321182505,1711951844162,-500.0,0.00055068,120]
[321182506,1711951844171,-329.06730653,0.00055068,120]
[321182507,1711951844181,-500.0,0.00055068,120]
[321182508,1711951844191,-500.0,0.00055068,120]
[321182509,1711951844200,-500.0,0.00055068,120]
[321182510,1711951844210,-547.49342292,0.00055068,120]
[321182511,1711951844219,-500.0,0.00055068,120]
[321182512,1711951844229,-558.8626094,0.00055068,120]
[321182513,1711951844239,-556.61430267,0.00055068,120]
[321182514,1711951844248,-500.0,0.00055068,120]
[321182515,1711951844258,-573.08167941,0.00055068,120]
[321182516,1711951844269,-314.0,0.00055068,120]
[321182517,1711951844278,-500.0,0.00055068,120]
[321182518,1711951844288,-553.43250216,0.00055068,120]
[321182519,1711951844297,-500.0,0.00055068,120]
[321182520,1711951844307,-580.67320675,0.00055068,120]
[321182521,1711951844323,-240.57,0.00055068,120]
[321182522,1711951844332,-500.0,0.00055068,120]
[321182523,1711951844341,-249.15477335,0.00055068,120]
[321182524,1711951844350,-500.0,0.00055068,120]
[321182525,1711951844360,-500.0,0.00055068,120]
[321182526,1711951844369,-643.86397392,0.00055068,30]
[321182527,1711951844378,-500.0,0.00055068,120]
[321182528,1711951844388,-500.0,0.00055068,120]
[321182529,1711951844397,-500.0,0.00055068,120]
[321182530,1711951844408,-500.0,0.00055068,120]
[321182531,1711951844418,-156.83835741,0.00055068,120]
[321182532,1711951844427,-500.0,0.00055068,120]
[321182533,1711951844442,-500.0,0.00055068,120]
[321182534,1711951844452,-150.0,0.00055068,120]
[321182535,1711951844461,-280.87010817,0.00055068,120]
[321182536,1711951844471,-370.93775293,0.00055068,120]
[321182537,1711951844483,-500.0,0.00055068,120]
[321182538,1711951844493,-500.0,0.00055068,120]
[321182539,1711951844503,-500.0,0.00055068,120]
[321182540,1711951844512,-500.0,0.00055068,120]
[321182541,1711951844521,-500.0,0.00055068,120]
[321182542,1711951844532,-520.71486318,0.00055068,120]
[321182543,1711951844542,-456.37832358,0.00055068,50]
[321182544,1711951844552,-500.0,0.00055068,120]
[321182545,1711951844563,-500.0,0.00055068,120]
[321182546,1711951844572,-500.0,0.00055068,120]
[321182547,1711951844582,-500.0,0.00055068,120]
[321182548,1711951844592,-500.0,0.00055068,120]
[321182549,1711951844601,-500.0,0.00055068,120]
[321182550,1711951844611,-500.0,0.00055068,120]
[321182551,1711951844620,-500.0,0.00055068,120]
[321182552,1711951844630,-500.0,0.00055068,120]
[321182553,1711951844639,-500.0,0.00055068,120]
[321182554,1711951844648,-500.0,0.00055068,120]
[321182555,1711951844658,-623.7,0.00055068,120]
[321182556,1711951844667,-500.0,0.00055068,120]
[321182557,1711951844677,-775.42,0.00055068,120]
[321182558,1711951844686,-500.0,0.00055068,120]
[321182559,1711951844695,-768.77,0.00055068,120]
[321182560,1711951844705,-1125.53,0.00055068,120]
[321182561,1711951844714,-704.11,0.00055068,120]
[321182562,1711951844724,-3905.3,0.00055068,120]
[321182563,1711951844734,-500.0,0.00055068,120]
[321182564,1711951844743,-1527.15,0.00055068,120]
[321182565,1711951844753,-500.0,0.00055068,120]
[321182566,1711951844762,-500.0,0.00055068,120]
[321182567,1711951844771,-500.0,0.00055068,120]
[321182568,1711951844780,-200.21015208,0.00055068,120]
[321182569,1711951844789,-500.0,0.00055068,120]
[321182570,1711951844798,-2316.33,0.00055068,120]
[321182571,1711951844807,-500.0,0.00055068,120]
[321182572,1711951844819,-500.0,0.00055068,120]
[321182573,1711951844828,-844.99,0.00055068,120]
[321182574,1711951844838,-500.0,0.00055068,120]
[321182575,1711951844848,-500.0,0.00055068,120]
[321182576,1711951844858,-500.0,0.00055068,120]
[321182577,1711951844868,-500.0,0.00055068,120]
[321182578,1711951844878,-500.0,0.00055068,120]
[321182579,1711951844887,-500.0,0.00055068,120]
[321182580,1711951844897,-885.7,0.00055068,120]
[321182581,1711951844906,-500.0,0.00055068,120]
[321182582,1711951844916,-500.0,0.00055068,120]
[321182583,1711951844925,-500.0,0.00055068,120]
[321182584,1711951844934,-1295.33,0.00055068,120]
[321182585,1711951844944,-2937.94,0.00055068,120]
[321182586,1711951844953,-195.63967788,0.00055068,120]
[321182587,1711951844962,-500.0,0.00055068,120]
[321182588,1711951844972,-1995.86,0.00055068,120]
[321182589,1711951844981,-500.0,0.00055068,120]
[321182590,1711951844990,-500.0,0.00055068,120]
[321182591,1711951845000,-598.43,0.00055068,120]
[321182592,1711951845010,-500.0,0.00055068,120]
[321182593,1711951845020,-500.0,0.00055068,120]
[321182594,1711951845029,-500.0,0.00055068,120]
[321182595,1711951845039,-1598.44,0.00055068,120]
[321182596,1711951845048,-500.0,0.00055068,120]
[321182597,1711951845058,-500.0,0.00055068,120]
[321182598,1711951845072,-1620.39,0.00055068,120]
[321182599,1711951845081,-500.0,0.00055068,120]
[321182600,1711951845092,-500.0,0.00055068,120]
[321182601,1711951845102,-1182.42,0.00055068,120]
[321182602,1711951845113,-500.0,0.00055068,120]
[321182603,1711951845123,-500.0,0.00055068,120]
[321182604,1711951845133,-500.0,0.00055068,120]
[321182605,1711951845144,-500.0,0.00055068,120]
[321182606,1711951845155,-500.0,0.00055068,120]
[321182607,1711951845165,-1108.51,0.00055068,120]
[321182608,1711951845174,-500.0,0.00055068,120]
[321182609,1711951845185,-2166.26,0.00055068,120]
[321182610,1711951845194,-500.0,0.00055068,120]
[321182611,1711951845203,-500.0,0.00055068,120]
[321182612,1711951845213,-500.0,0.00055068,120]
[321182613,1711951845223,-500.0,0.00055068,120]
[321182614,1711951845233,-760.91,0.00055068,120]
[321182615,1711951845243,-500.0,0.00055068,120]
[321182616,1711951845252,-500.0,0.00055068,120]
[321182617,1711951845262,-500.0,0.00055068,120]
[321182618,1711951845272,-1208.42,0.00055068,120]
[321182619,1711951845282,-500.0,0.00055068,120]
[321182620,1711951845292,-500.0,0.00055068,120]
[321182621,1711951845302,-500.0,0.00055068,120]
[321182622,1711951845312,-2832.74,0.00055068,120]
[321182623,1711951845326,-500.0,0.00055068,120]
[321182624,1711951845335,-500.0,0.00055068,120]
[321182625,1711951845344,-651.14,0.00055068,120]
[321182626,1711951845354,-500.0,0.00055068,120]
[321182627,1711951845363,-734.88,0.00055068,120]
[321182628,1711951845373,-500.0,0.00055068,120]
[321182629,1711951845383,-500.0,0.00055068,120]
[321182630,1711951845392,-1257.16,0.00055068,120]
[321182631,1711951845402,-741.06,0.00055068,120]
[321182632,1711951845412,-1699.92,0.00055068,120]
[321182634,1711951845422,-1993.44,0.00055068,120]
[321182636,1711951845431,-557.67252324,0.00055068,120]
[321182639,1711951845443,-500.0,0.00055068,120]
[321182640,1711951845452,-500.0,0.00055068,120]
[321182642,1711951845462,-3642.1,0.00055068,120]
[321182645,1711951845472,-7257.52,0.00055068,120]
[321182647,1711951845483,-500.0,0.00055068,120]
[321182648,1711951845492,-500.0,0.00055068,120]
[321182650,1711951845501,-500.0,0.00055068,120]
[321182653,1711951845511,-500.0,0.00055068,120]
[321182656,1711951845521,-902.57,0.00055068,21]
[321182658,1711951845530,-500.0,0.00055068,120]
[321182660,1711951845540,-500.0,0.00055068,120]
[321182662,1711951845549,-500.0,0.00055068,120]
[321182664,1711951845558,-500.0,0.00055068,120]
[321182666,1711951845571,-500.0,0.00055068,120]
[321182670,1711951845580,-500.0,0.00055068,120]
[321182672,1711951845589,-2173.88,0.00055068,120]
[321182674,1711951845598,-500.0,0.00055068,120]
[321182676,1711951845609,-500.0,0.00055068,120]
[321182678,1711951845619,-500.0,0.00055068,120]
[321182680,1711951845628,-500.0,0.00055068,120]
[321182682,1711951845637,-500.0,0.00055342,120]
[321182684,1711951845647,-553.62897014,0.00055342,120]
[321182686,1711951845656,-500.0,0.00055342,120]
[321182688,1711951845665,-225.51320843,0.00055342,120]
[321182690,1711951845674,-500.0,0.00055342,120]
[321182692,1711951845683,-626.07936194,0.00055342,120]
[321182694,1711951845692,-500.0,0.00055342,120]
[321182696,1711951845701,-500.0,0.00055342,120]
[321182698,1711951845711,-500.0,0.00055342,120]
[321182700,1711951845722,-170.4806279,0.00055342,120]
[321182702,1711951845731,-571.18431176,0.00055342,120]
[321182704,1711951845740,-500.0,0.00055342,120]
[321182705,1711951845749,-500.0,0.00055342,120]
[321182706,1711951845758,-500.0,0.00055342,120]
[321182707,1711951845768,-598.40610637,0.00055342,120]
[321182708,1711951845777,-500.0,0.00055342,120]
[321182709,1711951845787,-500.0,0.00055342,120]
[321182710,1711951845796,-175.63838543,0.00055342,120]
[321182711,1711951845805,-500.0,0.00055342,120]
[321182712,1711951845817,-500.0,0.00055342,120]
[321182713,1711951845826,-500.0,0.00055342,120]
[321182714,1711951845836,-500.0,0.00055342,120]
[321182715,1711951845846,-500.0,0.00055342,120]
[321182716,1711951845855,-500.0,0.00055342,120]
[321182717,1711951845865,-500.0,0.00055342,120]
[321182718,1711951845875,-500.0,0.00055342,120]
[321182719,1711951845883,-500.0,0.00055342,120]
[321182720,1711951845893,-500.0,0.00055342,120]
[321182721,1711951845904,-623.7,0.00055342,120]
[321182722,1711951845913,-415.57807052,0.00055342,120]
[321182723,1711951845923,-775.42,0.00055342,120]
[321182724,1711951846054,-500.0,0.00055342,120]
[321182725,1711951846066,-768.77,0.00055342,120]
[321182726,1711951846076,-1125.53,0.00055342,120]
[321182727,1711951846085,-704.11,0.00055342,120]
[321182728,1711951846094,-3905.3,0.00055342,120]
[321182729,1711951846103,-1527.15,0.00055342,120]
[321182730,1711951846113,-500.0,0.00055342,120]
[321182731,1711951846122,-500.0,0.00055342,120]
[321182732,1711951846132,-500.0,0.00055342,120]
[321182733,1711951846141,-2316.33,0.00055342,120]
[321182734,1711951846150,-500.0,0.00055342,120]
[321182735,1711951846160,-500.0,0.00055342,120]
[321182736,1711951846170,-844.99,0.00055342,120]
[321182737,1711951846179,-500.0,0.00055342,120]
[321182738,1711951846188,-500.0,0.00055342,120]
[321182739,1711951846198,-397.76,0.00055342,120]
[321182740,1711951846207,-500.0,0.00055342,120]
[321182741,1711951846216,-885.7,0.00055342,120]
[321182742,1711951846226,-500.0,0.00055342,120]
[321182743,1711951846235,-500.0,0.00055342,120]
[321182744,1711951846244,-500.0,0.00055342,120]
[321182745,1711951846254,-500.0,0.00055342,120]
[321182746,1711951846264,-1295.33,0.00055342,120]
[321182747,1711951846273,-2937.94,0.00055342,120]
[321182748,1711951846282,-500.0,0.00055342,120]
[321182749,1711951846291,-1995.86,0.00055342,120]
[321182750,1711951846301,-500.0,0.00055342,120]
[321182751,1711951846309,-573.06219163,0.00055342,120]
[321182752,1711951846321,-598.43,0.00055342,120]
[321182753,1711951846330,-500.0,0.00055342,120]
[321182754,1711951846339,-500.0,0.00055342,120]
[321182755,1711951846348,-1598.44,0.00055342,120]
[321182756,1711951846357,-500.0,0.00055342,120]
[321182757,1711951846368,-500.0,0.00055342,120]
[321182758,1711951846377,-500.0,0.00055342,120]
[321182759,1711951846386,-1620.39,0.00055342,120]
[321182760,1711951846396,-500.0,0.00055342,120]
[321182761,1711951846406,-500.0,0.00055342,120]
[321182762,1711951846416,-1182.42,0.00055342,120]
[321182763,1711951846426,-500.0,0.00055342,120]
[321182764,1711951846437,-500.0,0.00055342,120]
[321182765,1711951846447,-500.0,0.00055342,120]
[321182766,1711951846456,-500.0,0.00055342,120]
[321182767,1711951846466,-500.0,0.00055342,120]
[321182768,1711951846476,-1108.51,0.00055342,120]
[321182769,1711951846485,-500.0,0.00055342,120]
[321182770,1711951846495,-2166.26,0.00055342,120]
[321182771,1711951846504,-256.14039871,0.00055342,120]
[321182772,1711951846515,-500.0,0.00055342,120]
[321182773,1711951846524,-500.0,0.00055342,120]
[321182774,1711951846534,-500.0,0.00055342,120]
[321182775,1711951846543,-760.91,0.00055342,120]
[321182776,1711951846552,-500.0,0.00055342,120]
[321182777,1711951846562,-500.0,0.00055342,120]
[321182778,1711951846574,-500.0,0.00055342,120]
[321182779,1711951846583,-1208.42,0.00055342,120]
[321182780,1711951846592,-500.0,0.00055342,120]
[321182781,1711951846601,-500.0,0.00055342,120]
[321182782,1711951846610,-500.0,0.00055342,120]
[321182783,1711951846620,-2832.74,0.00055342,120]
[321182784,1711951846629,-500.0,0.00055342,120]
[321182785,1711951846638,-500.0,0.00055342,120]
[321182786,1711951846647,-651.14,0.00055342,120]
[321182787,1711951846657,-500.0,0.00055342,120]
[321182788,1711951846667,-734.88,0.00055342,120]
[321182789,1711951846676,-500.0,0.00055342,120]
[321182790,1711951846686,-500.0,0.00055342,120]
[321182791,1711951846695,-1257.16,0.00055342,120]
[321182792,1711951846705,-741.06,0.00055342,120]
[321182793,1711951846715,-1699.92,0.00055342,120]
[321182794,1711951846725,-1993.44,0.00055342,120]
[321182795,1711951846735,-500.0,0.00055342,120]
[321182796,1711951846744,-500.0,0.00055342,120]
[321182797,1711951846754,-3642.1,0.00055342,120]
[321182798,1711951846764,-7257.52,0.00055342,120]
[321182799,1711951846774,-500.0,0.00055342,120]
[321182800,1711951846783,-614.95,0.00055342,120]
[321182801,1711951846793,-500.0,0.00055342,120]
[321182802,1711951846803,-500.0,0.00055342,120]
[321182803,1711951846813,-902.57,0.00055342,21]
[321182804,1711951846824,-500.0,0.00055342,120]
[321182805,1711951846833,-500.0,0.00055342,120]
[321182806,1711951846843,-500.0,0.00055342,120]
[321182807,1711951846853,-500.0,0.00055342,120]
[321182808,1711951846863,-500.0,0.00055342,120]
[321182809,1711951846872,-500.0,0.00055342,120]
[321182810,1711951846882,-2173.88,0.00055342,120]
[321182811,1711951846891,-500.0,0.00055342,120]
[321182812,1711951846901,-500.0,0.00055342,120]
[321182813,1711951846911,-500.0,0.00055342,120]
[321182814,1711951846921,-500.0,0.00055342,120]
[321182816,1711951846931,-159.52101061,0.00055516,2]
[321182817,1711951846941,-1178.0,0.00055568,120]
[321182818,1711951846950,-4645.0,0.00055568,120]
[321182819,1711951846960,-500.0,0.00055616,120]
[321182820,1711951846969,-500.0,0.00055616,120]
[321182821,1711951846979,-351.09370953,0.00055616,120]
[321182822,1711951846988,-264.19,0.00055616,120]
[321182824,1711951846998,-484.61400549,0.00055616,120]
[321182825,1711951847008,-207.94,0.00055616,120]
[321182827,1711951847018,-500.0,0.00055616,120]
[321182829,1711951847027,-500.0,0.00055616,120]
[321182830,1711951847036,-500.0,0.00055616,120]
[321182831,1711951847046,-500.0,0.00055616,120]
[321182832,1711951847055,-500.0,0.00055616,120]
[321182833,1711951847066,-500.0,0.00055616,120]
[321182834,1711951847076,-500.0,0.00055616,120]
[321182835,1711951847086,-500.0,0.00055616,120]
[321182836,1711951847095,-500.0,0.00055616,120]
[321182837,1711951847106,-500.0,0.00055616,120]
[321182838,1711951847115,-500.0,0.00055616,120]
[321182839,1711951847125,-500.0,0.00055616,120]
[321182840,1711951847134,-500.0,0.00055616,120]
[321182841,1711951847143,-623.7,0.00055616,120]
[321182842,1711951847153,-775.42,0.00055616,120]
[321182843,1711951847163,-500.0,0.00055616,120]
[321182844,1711951847172,-768.77,0.00055616,120]
[321182845,1711951847182,-1125.53,0.00055616,120]
[321182846,1711951847192,-704.11,0.00055616,120]
[321182847,1711951847201,-3905.3,0.00055616,120]
[321182848,1711951847211,-1527.15,0.00055616,120]
[321182849,1711951847220,-500.0,0.00055616,120]
[321182850,1711951847229,-500.0,0.00055616,120]
[321182851,1711951847238,-500.0,0.00055616,120]
[321182852,1711951847248,-2316.33,0.00055616,120]
[321182853,1711951847257,-500.0,0.00055616,120]
[321182854,1711951847266,-500.0,0.00055616,120]
[321182855,1711951847275,-844.99,0.00055616,120]
[321182856,1711951847285,-500.0,0.00055616,120]
[321182857,1711951847294,-500.0,0.00055616,120]
[321182858,1711951847303,-500.0,0.00055616,120]
[321182859,1711951847313,-885.7,0.00055616,120]
[321182860,1711951847325,-500.0,0.00055616,120]
[321182861,1711951847334,-500.0,0.00055616,120]